fUSD/lending_fUSD_20240425
["ID","MTS","AMOUNT","RATE_DAILY","PERIOD"]
[323523840,1714067446878,-500.0,0.00011232,2]
[323523841,1714067446888,-2917.02,0.00011232,2]
[323523842,1714067446898,-500.0,0.00011232,2]
[323523843,1714067446908,-624.09,0.00011232,2]
[323523844,1714067446919,-516.84,0.00011232,2]
[323523845,1714067446930,-299.45,0.00011232,2]
[323523846,1714067446941,-5963.92,0.00011232,2]
[323523847,1714067446952,-500.0,0.00011232,2]
[323523848,1714067446962,-909.0,0.00011232,2]
[323523849,1714067446972,-500.0,0.00011232,2]
[323523850,1714067446982,-1111.7,0.00011232,2]
[323523851,1714067446992,-635.11,0.00011232,2]
[323523852,1714067447003,-500.0,0.00011232,2]
[323523853,1714067447014,-798.31,0.00011232,2]
[323523854,1714067447024,-500.0,0.00011232,2]
[323523855,1714067447034,-677.93,0.00011232,2]
[323523856,1714067447044,-726.34,0.00011232,2]
[323523857,1714067447054,-552.87,0.00011232,2]
[323523858,1714067447063,-924.15,0.00011232,2]
[323523859,1714067447072,-761.59,0.00011232,2]
[323523860,1714067447081,-310.7209177,0.00011232,2]
[323523861,1714067447091,-500.0,0.00011232,2]
[323523862,1714067447102,-500.0,0.00011232,2]
[323523863,1714067447112,-532.76,0.00011232,2]
[323523864,1714067447122,-1321.58,0.00011232,2]
[323523865,1714067447132,-500.0,0.00011232,2]
[323523866,1714067447143,-3943.14,0.00011232,2]
[323523867,1714067447153,-500.0,0.00011232,2]
[323523868,1714067447163,-2153.13,0.00011232,2]
[323523869,1714067447174,-500.0,0.00011232,2]
[323523870,1714067447183,-764.31,0.00011232,2]
[323523871,1714067447194,-3035.98,0.00011232,2]
[323523872,1714067447204,-500.0,0.00011232,2]
[323523873,1714067447214,-1320.34,0.00011232,2]
[323523874,1714067447227,-500.0,0.00011232,2]
[323523875,1714067447237,-500.0,0.00011232,2]
[323523876,1714067447248,-500.0,0.00011232,2]
[323523877,1714067447258,-363.9394259,0.00011232,2]
[323523878,1714067447268,-500.0,0.00011232,2]
[323523879,1714067447279,-1758.69,0.00011232,2]
[323523880,1714067447289,-2401.15,0.00011232,2]
[323523881,1714067447299,-510.25,0.00011232,2]
[323523882,1714067447309,-500.0,0.00011232,2]
[323523883,1714067447319,-500.0,0.00011232,2]
[323523884,1714067447328,-500.0,0.00011232,2]
[323523885,1714067447339,-1304.22,0.00011232,2]
[323523886,1714067447350,-500.0,0.00011232,2]
[323523887,1714067447360,-500.0,0.00011232,2]
[323523888,1714067447370,-500.0,0.00011232,2]
[323523889,1714067447381,-1167.6,0.00011232,2]
[323523890,1714067447392,-500.0,0.00011232,2]
[323523891,1714067447401,-500.0,0.00011232,2]
[323523892,1714067447410,-2259.06,0.00011232,2]
[323523893,1714067447420,-504.74,0.00011232,2]
[323523894,1714067447429,-3469.79,0.00011232,2]
[323523895,1714067447440,-530.76,0.00011232,2]
[323523896,1714067447451,-3156.68,0.00011232,2]
[323523897,1714067447462,-500.0,0.00011232,2]
[323523898,1714067447475,-732.27,0.00011232,2]
[323523899,1714067447484,-500.0,0.00011232,2]
[323523900,1714067447494,-500.0,0.00011232,2]
[323523901,1714067447504,-500.0,0.00011232,2]
[323523902,1714067447514,-537.38565693,0.00011232,2]
[323523903,1714067447523,-500.0,0.00011232,2]
[323523904,1714067447533,-4753.27,0.00011232,2]
[323523905,1714067447542,-1051.15,0.00011232,2]
[323523906,1714067447551,-500.0,0.00011232,2]
[323523907,1714067447561,-977.9,0.00011232,2]
[323523908,1714067447571,-535.34,0.00011232,2]
[323523909,1714067447582,-500.0,0.00011232,2]
[323523910,1714067447592,-837.85,0.00011232,2]
[323523911,1714067447603,-1890.94,0.00011232,2]
[323523912,1714067447613,-500.0,0.00011232,2]
[323523913,1714067447622,-500.0,0.00011232,2]
[323523914,1714067447633,-500.0,0.00011232,2]
[323523915,1714067447642,-500.0,0.00011232,2]
[323523916,1714067447653,-500.0,0.00011232,2]
[323523917,1714067447664,-1177.01,0.00011232,2]
[323523918,1714067447674,-500.0,0.00011232,2]
[323523919,1714067447684,-614.86,0.00011232,2]
[323523920,1714067447695,-500.0,0.00011232,2]
[323523921,1714067447705,-500.0,0.00011232,2]
[323523922,1714067447715,-500.0,0.00011232,2]
[323523923,1714067447726,-1008.8,0.00011232,2]
[323523924,1714067447736,-5264.15,0.00011232,2]
[323523925,1714067447746,-20987.97,0.00011232,2]
[323523926,1714067447756,-500.0,0.00011232,2]
[323523927,1714067447765,-846.44,0.00011232,2]
[323523928,1714067447776,-6184.63,0.00011281,2]
[323523929,1714067447786,-8604.25,0.00011281,2]
[323523930,1714067447797,-14379.0,0.00011281,2]
[323523931,1714067447807,-14787.56,0.00011281,2]
[323523932,1714067447817,-406.02333622,0.00011324,2]
[323523933,1714067447827,-664.3350422,0.00011405,2]
[323523934,1714067447837,-161.46228048,0.00011406,2]
[323523935,1714067447848,-600.0,0.00011417,2]
[323523936,1714067447858,-533.03,0.00011505,2]
[323523937,1714067447868,-681.91,0.00011505,2]
[323523938,1714067447878,-828.38,0.00011505,2]
[323523939,1714067447887,-500.0,0.00011505,2]
[323523940,1714067447897,-1369.56,0.00011505,2]
[323523941,1714067447906,-2317.41,0.00011505,2]
[323523942,1714067447916,-546.82,0.00011505,2]
[323523943,1714067447925,-500.0,0.00011505,2]
[323523944,1714067447935,-537.62,0.00011505,2]
[323523945,1714067447944,-1318.05,0.00011505,2]
[323523946,1714067447954,-500.0,0.00011505,2]
[323523947,1714067447963,-4028.59,0.00011505,2]
[323523948,1714067447974,-5759.08,0.00011505,2]
[323523949,1714067447983,-1383.0,0.00011505,2]
[323523950,1714067447993,-514.21,0.00011505,2]
[323523951,1714067448002,-1060.36,0.00011505,2]
[323523952,1714067448011,-747.36,0.00011505,2]
[323523953,1714067448021,-500.0,0.00011505,2]
[323523954,1714067448031,-1349.46,0.00011505,2]
[323523955,1714067448041,-500.0,0.00011505,2]
[323523956,1714067448051,-655.94,0.00011505,2]
[323523957,1714067448061,-3966.3,0.00011505,2]
[323523958,1714067448070,-2017.24,0.00011505,2]
[323523959,1714067448079,-7992.33,0.00011505,2]
[323523960,1714067448089,-604.2,0.00011506,2]
[323523961,1714067448099,-232.12156096,0.00011506,2]
[323523962,1714067448110,-500.0,0.00011506,2]
[323523963,1714067448120,-500.0,0.00011506,2]
[323523964,1714067448129,-500.0,0.00011506,2]
[323523965,1714067448139,-500.0,0.00011506,2]
[323523966,1714067448149,-500.0,0.00011506,2]
[323523967,1714067448159,-597.79,0.00011506,2]
[323523968,1714067448169,-500.0,0.00011506,2]
[323523969,1714067448179,-507.26,0.00011506,2]
[323523970,1714067448189,-679.53,0.00011506,2]
[323523971,1714067448200,-500.0,0.00011506,2]
[323523972,1714067448209,-500.0,0.00011506,2]
[323523973,1714067448219,-500.0,0.00011506,2]
[323523974,1714067448229,-949.76,0.00011506,2]
[323523975,1714067448239,-500.0,0.00011506,2]
[323523976,1714067448248,-500.0,0.00011506,2]
[323523977,1714067448258,-639.75,0.00011506,2]
[323523978,1714067448268,-500.0,0.00011506,2]
[323523979,1714067448279,-500.0,0.00011506,2]
[323523980,1714067448289,-500.0,0.00011506,2]
[323523981,1714067448299,-500.0,0.00011506,2]
[323523982,1714067448309,-500.0,0.00011506,2]
[323523983,1714067448319,-500.0,0.00011506,2]
[323523984,1714067448330,-500.0,0.00011506,2]
[323523985,1714067448340,-560.78,0.00011506,2]
[323523986,1714067448350,-958.4,0.00011506,2]
[323523987,1714067448360,-500.0,0.00011506,2]
[323523988,1714067448371,-500.0,0.00011506,2]
[323523989,1714067448384,-500.0,0.00011506,2]
[323523990,1714067448394,-500.0,0.00011506,2]
[323523991,1714067448405,-500.0,0.00011506,2]
[323523992,1714067448415,-500.0,0.00011506,2]
[323523993,1714067448426,-754.04,0.00011506,2]
[323523994,1714067448436,-621.48,0.00011506,2]
[323523995,1714067448448,-500.0,0.00011506,2]
[323523996,1714067448458,-500.0,0.00011506,2]
[323523997,1714067448469,-677.29,0.00011506,2]
[323523998,1714067448479,-500.0,0.00011506,2]
[323523999,1714067448490,-913.14,0.00011506,2]
[323524000,1714067448500,-500.0,0.00011506,2]
[323524001,1714067448510,-632.77,0.00011506,2]
[323524002,1714067448520,-500.0,0.00011506,2]
[323524003,1714067448530,-835.0,0.00011506,2]
[323524004,1714067448540,-576.38,0.00011506,2]
[323524005,1714067448550,-774.42,0.00011506,2]
[323524006,1714067448560,-537.21,0.00011506,2]
[323524007,1714067448570,-796.17,0.00011506,2]
[323524008,1714067448580,-500.0,0.00011506,2]
[323524009,1714067448590,-800.87,0.00011506,2]
[323524010,1714067448600,-500.0,0.00011506,2]
[323524011,1714067448610,-500.0,0.00011506,2]
[323524012,1714067448620,-500.0,0.00011506,2]
[323524013,1714067448630,-500.0,0.00011506,2]
[323524014,1714067448640,-500.0,0.00011506,2]
[323524015,1714067448650,-954.54,0.00011506,2]
[323524016,1714067448661,-500.0,0.00011506,2]
[323524017,1714067448671,-500.0,0.00011506,2]
[323524018,1714067448681,-500.0,0.00011506,2]
[323524019,1714067448691,-500.0,0.00011506,2]
[323524020,1714067448701,-500.0,0.00011506,2]
[323524021,1714067448711,-500.0,0.00011506,2]
[323524022,1714067448721,-500.0,0.00011506,2]
[323524023,1714067448730,-845.56,0.00011506,2]
[323524024,1714067448740,-500.0,0.00011506,2]
[323524025,1714067448750,-500.0,0.00011506,2]
[323524026,1714067448761,-500.0,0.00011506,2]
[323524027,1714067448771,-500.0,0.00011506,2]
[323524028,1714067448782,-500.0,0.00011506,2]
[323524029,1714067448793,-785.13,0.00011506,2]
[323524030,1714067448803,-500.0,0.00011506,2]
[323524031,1714067448813,-500.0,0.00011506,2]
[323524032,1714067448824,-500.0,0.00011506,2]
[323524033,1714067448834,-500.0,0.00011506,2]
[323524034,1714067448844,-500.0,0.00011506,2]
[323524035,1714067448855,-763.14,0.00011506,2]
[323524036,1714067448866,-504.2,0.00011506,2]
[323524037,1714067448877,-500.0,0.00011506,2]
[323524038,1714067448887,-836.92,0.00011506,2]
[323524039,1714067448897,-500.0,0.00011506,2]
[323524040,1714067448907,-500.0,0.00011506,2]
[323524041,1714067448917,-500.0,0.00011506,2]
[323524042,1714067448926,-500.0,0.00011506,2]
[323524043,1714067448937,-500.0,0.00011506,2]
[323524044,1714067448947,-1006.08,0.00011506,2]
[323524045,1714067448957,-500.0,0.00011506,2]
[323524046,1714067448966,-500.0,0.00011506,2]
[323524047,1714067448978,-500.0,0.00011506,2]
[323524048,1714067448987,-567.83,0.00011506,2]
[323524049,1714067448997,-500.0,0.00011506,2]
[323524050,1714067449007,-537.47,0.00011506,2]
[323524051,1714067449017,-500.0,0.00011506,2]
[323524052,1714067449027,-894.31,0.00011506,2]
[323524053,1714067449037,-500.0,0.00011506,2]
[323524054,1714067449049,-500.0,0.00011506,2]
[323524055,1714067449059,-648.55,0.00011506,2]
[323524056,1714067449068,-500.0,0.00011506,2]
[323524057,1714067449077,-567.64,0.00011506,2]
[323524058,1714067449086,-500.0,0.00011506,2]
[323524059,1714067449095,-500.0,0.00011506,2]
[323524060,1714067449107,-584.11,0.00011506,2]
[323524061,1714067449117,-500.0,0.00011506,2]
[323524062,1714067449126,-500.0,0.00011506,2]
[323524063,1714067449136,-500.0,0.00011506,2]
[323524064,1714067449146,-150.0,0.00011506,2]
[323524065,1714067449157,-500.0,0.00011506,2]
[323524066,1714067449166,-500.0,0.00011506,2]
[323524067,1714067449176,-500.0,0.00011506,2]
[323524068,1714067449185,-500.0,0.00011506,2]
[323524069,1714067449195,-540.93,0.00011506,2]
[323524070,1714067449205,-500.0,0.00011506,2]
[323524071,1714067449214,-500.0,0.00011506,2]
[323524072,1714067449224,-500.0,0.00011506,2]
[323524073,1714067449402,-500.0,0.00011506,2]
[323524074,1714067449412,-500.0,0.00011506,2]
[323524075,1714067449422,-500.0,0.00011506,2]
[323524076,1714067449433,-588.05,0.00011506,2]
[323524077,1714067449444,-500.0,0.00011506,2]
[323524078,1714067449456,-500.0,0.00011506,2]
[323524079,1714067449468,-555.96062641,0.00011506,2]
[323524080,1714067449478,-500.0,0.00011506,2]
[323524081,1714067449488,-500.0,0.00011506,2]
[323524082,1714067449500,-500.0,0.00011506,2]
[323524083,1714067449510,-500.0,0.00011506,2]
[323524084,1714067449520,-426.28257298,0.00011506,2]
[323524085,1714067449531,-542.44,0.00011506,2]
[323524086,1714067449541,-796.54,0.00011506,2]
[323524087,1714067449552,-500.0,0.00011506,2]
[323524088,1714067449562,-500.0,0.00011506,2]
[323524089,1714067449573,-914.08,0.00011506,2]
[323524090,1714067449582,-563.4,0.00011506,2]
[323524091,1714067449592,-500.0,0.00011506,2]
[323524092,1714067449603,-668.11,0.00011506,2]
[323524093,1714067449613,-715.92,0.00011506,2]
[323524094,1714067449623,-500.0,0.00011506,2]
[323524095,1714067449633,-1121.85,0.00011506,2]
[323524096,1714067449643,-2051.83,0.00011506,2]
[323524097,1714067449653,-928.51,0.00011506,2]
[323524098,1714067449664,-854.92,0.00011506,2]
[323524099,1714067449675,-1005.82,0.00011506,2]
[323524100,1714067449685,-500.0,0.00011506,2]
[323524101,1714067449695,-893.22,0.00011506,2]
[323524102,1714067449706,-500.0,0.00011506,2]
[323524103,1714067449716,-500.0,0.00011506,2]
[323524104,1714067449728,-503.3,0.00011506,2]
[323524105,1714067449737,-500.0,0.00011506,2]
[323524106,1714067449748,-500.0,0.00011506,2]
[323524107,1714067449758,-1018.77,0.00011506,2]
[323524108,1714067449768,-500.0,0.00011506,2]
[323524109,1714067449778,-1601.08,0.00011506,2]
[323524110,1714067449788,-500.0,0.00011506,2]
[323524111,1714067449797,-500.0,0.00011506,2]
[323524112,1714067449807,-500.0,0.00011506,2]
[323524113,1714067449818,-1114.47,0.00011506,2]
[323524114,1714067449829,-500.0,0.00011506,2]
[323524115,1714067449840,-1161.09,0.00011506,2]
[323524116,1714067449850,-500.0,0.00011506,2]
[323524117,1714067449860,-500.0,0.00011506,2]
[323524118,1714067449871,-500.0,0.00011506,2]
[323524119,1714067449881,-500.0,0.00011506,2]
[323524120,1714067449891,-8685.8,0.00011506,2]
[323524121,1714067449901,-500.0,0.00011506,2]
[323524122,1714067449910,-500.0,0.00011506,2]
[323524123,1714067449921,-939.59,0.00011506,2]
[323524124,1714067449931,-500.0,0.00011506,2]
[323524125,1714067449940,-500.0,0.00011506,2]
[323524126,1714067449949,-500.0,0.00011506,2]
[323524127,1714067449959,-500.0,0.00011506,2]
[323524128,1714067449968,-500.0,0.00011506,2]
[323524129,1714067449978,-742.33,0.00011506,2]
[323524130,1714067449987,-500.0,0.00011506,2]
[323524131,1714067449997,-762.04,0.00011506,2]
[323524132,1714067450007,-309.1582968,0.00011506,2]
[323524133,1714067450016,-19810.78080952,0.00011506,2]
[323524134,1714067450435,-500.0,0.00011232,2]
[323524135,1714067450447,-1760.151751,0.00011506,2]
[323524136,1714067450478,-414.67216582,0.00011506,2]
[323524137,1714067450533,-1413.62527366,0.00011506,2]
[323524138,1714067450542,-171.70256052,0.00011506,2]
[323524139,1714067450555,-328.29743948,0.00011506,2]
[323524140,1714067450564,-500.0,0.00011506,2]
[323524141,1714067450575,-500.0,0.00011506,2]
[323524142,1714067450584,-858.56,0.00011506,2]
[323524143,1714067450594,-583.87,0.00011506,2]
[323524144,1714067450605,-500.0,0.00011506,2]
[323524145,1714067450615,-500.0,0.00011506,2]
[323524146,1714067450625,-500.0,0.00011506,2]
[323524147,1714067450636,-500.0,0.00011506,2]
[323524148,1714067450646,-105.88956072,0.00011506,2]
[323524149,1714067450982,-378.12394704,0.00011506,2]
[323524150,1714067451001,-345.35649224,0.00011506,2]
[323524151,1714067451011,-500.0,0.00011506,2]
[323524152,1714067451021,-500.0,0.00011506,2]
[323524153,1714067451030,-500.0,0.00011506,2]
[323524154,1714067451040,-111.98762766,0.00011506,2]
[323524155,1714067451052,-388.01237234,0.00011506,2]
[323524156,1714067451061,-694.19,0.00011506,2]
[323524157,1714067451071,-680.95,0.00011506,2]
[323524158,1714067451080,-500.0,0.00011506,2]
[323524159,1714067451090,-665.46158076,0.00011506,2]
[323524160,1714067451102,-48.04841924,0.00011506,2]
[323524161,1714067451112,-208.85200439,0.00011506,2]
[323524162,1714067451145,-535.88799561,0.00011506,2]
[323524163,1714067451154,-500.0,0.00011506,2]
[323524164,1714067451165,-500.0,0.00011506,2]
[323524165,1714067451174,-500.0,0.00011506,2]
[323524166,1714067451184,-441.00011627,0.00011506,2]
[323524167,1714067451193,-809.46,0.00011506,2]
[323524168,1714067451202,-530.54,0.00011506,2]
[323524169,1714067451212,-795.87,0.00011506,2]
[323524170,1714067451222,-2793.76,0.00011506,2]
[323524171,1714067451232,-2866.92,0.00011506,2]
[323524172,1714067451242,-1024.67,0.00011506,2]
[323524173,1714067451251,-1006.07,0.00011506,2]
[323524174,1714067451260,-1441.65,0.00011506,2]
[323524175,1714067451270,-736.56,0.00011506,2]
[323524176,1714067451280,-868.57,0.00011506,2]
[323524177,1714067451291,-374.37,0.00011506,2]
[323524178,1714067451300,-781.36,0.00011506,2]
[323524179,1714067451311,-579.03,0.00011506,2]
[323524180,1714067451321,-500.0,0.00011506,2]
[323524181,1714067451333,-500.0,0.00011506,2]
[323524182,1714067451343,-500.0,0.00011506,2]
[323524183,1714067451352,-3410.08,0.00011506,2]
[323524184,1714067451361,-500.0,0.00011506,2]
[323524185,1714067451371,-500.0,0.00011506,2]
[323524186,1714067451380,-206.52,0.00011506,2]
[323524187,1714067451393,-500.0,0.00011506,2]
[323524188,1714067451402,-500.0,0.00011506,2]
[323524189,1714067451411,-600.5,0.00011506,2]
[323524190,1714067451422,-966.23,0.00011506,2]
[323524191,1714067451432,-738.13,0.00011506,2]
[323524192,1714067451441,-895.36,0.00011506,2]
[323524193,1714067451450,-546.21,0.00011506,2]
[323524194,1714067451461,-1187.29,0.00011506,2]
[323524195,1714067451472,-707.57,0.00011506,2]
[323524196,1714067451482,-500.0,0.00011506,2]
[323524197,1714067451492,-2917.02,0.00011506,2]
[323524198,1714067451502,-500.0,0.00011506,2]
[323524199,1714067451513,-624.09,0.00011506,2]
[323524200,1714067451523,-516.84,0.00011506,2]
[323524201,1714067451533,-5963.92,0.00011506,2]
[323524202,1714067451544,-500.0,0.00011506,2]
[323524203,1714067451554,-909.0,0.00011506,2]
[323524204,1714067451565,-500.0,0.00011506,2]
[323524205,1714067451575,-1111.7,0.00011506,2]
[323524206,1714067451583,-635.11,0.00011506,2]
[323524207,1714067451593,-500.0,0.00011506,2]
[323524208,1714067451603,-798.31,0.00011506,2]
[323524209,1714067451613,-584.3,0.00011506,2]
[323524210,1714067451624,-677.93,0.00011506,2]
[323524211,1714067451634,-726.34,0.00011506,2]
[323524212,1714067451644,-552.87,0.00011506,2]
[323524213,1714067451654,-924.15,0.00011506,2]
[323524214,1714067451664,-761.59,0.00011506,2]
[323524215,1714067451674,-500.0,0.00011506,2]
[323524216,1714067451684,-1321.58,0.00011506,2]
[323524217,1714067451694,-500.0,0.00011506,2]
[323524218,1714067451704,-3943.14,0.00011506,2]
[323524219,1714067451715,-2153.13,0.00011506,2]
[323524220,1714067451726,-500.0,0.00011506,2]
[323524221,1714067451735,-306.84721049,0.00011506,2]
[323524222,1714067451744,-764.31,0.00011506,2]
[323524223,1714067451754,-3035.98,0.00011506,2]
[323524224,1714067451763,-500.0,0.00011506,2]
[323524225,1714067451772,-1320.34,0.00011506,2]
[323524226,1714067451783,-500.0,0.00011506,2]
[323524227,1714067451793,-500.0,0.00011506,2]
[323524228,1714067451804,-500.0,0.00011506,2]
[323524229,1714067451814,-1758.69,0.00011506,2]
[323524230,1714067451824,-2401.15,0.00011506,2]
[323524231,1714067451834,-510.25,0.00011506,2]
[323524232,1714067451844,-500.0,0.00011506,2]
[323524233,1714067451854,-500.0,0.00011506,2]
[323524234,1714067451863,-1304.22,0.00011506,2]
[323524235,1714067451874,-500.0,0.00011506,2]
[323524236,1714067452064,-541.56,0.00011506,2]
[323524237,1714067452075,-1167.6,0.00011506,2]
[323524238,1714067452086,-500.0,0.00011506,2]
[323524239,1714067452096,-500.0,0.00011506,2]
[323524240,1714067452106,-2259.06,0.00011506,2]
[323524241,1714067452115,-3469.79,0.00011506,2]
[323524242,1714067452125,-530.76,0.00011506,2]
[323524243,1714067452135,-3156.68,0.00011506,2]
[323524244,1714067452144,-500.0,0.00011506,2]
[323524245,1714067452154,-732.27,0.00011506,2]
[323524246,1714067452162,-500.0,0.00011506,2]
[323524247,1714067452172,-500.0,0.00011506,2]
[323524248,1714067452181,-500.0,0.00011506,2]
[323524249,1714067452191,-500.0,0.00011506,2]
[323524250,1714067452200,-4753.27,0.00011506,2]
[323524251,1714067452210,-1051.15,0.00011506,2]
[323524252,1714067452220,-500.0,0.00011506,2]
[323524253,1714067452232,-977.9,0.00011506,2]
[323524254,1714067452242,-535.34,0.00011506,2]
[323524255,1714067452252,-500.0,0.00011506,2]
[323524256,1714067452263,-837.85,0.00011506,2]
[323524257,1714067452272,-1890.94,0.00011506,2]
[323524258,1714067452284,-500.0,0.00011506,2]
[323524259,1714067452295,-500.0,0.00011506,2]
[323524260,1714067452305,-500.0,0.00011506,2]
[323524261,1714067452316,-500.0,0.00011506,2]
[323524262,1714067452326,-500.0,0.00011506,2]
[323524263,1714067452337,-1177.01,0.00011506,2]
[323524264,1714067452349,-523.02,0.00011506,2]
[323524265,1714067452359,-500.0,0.00011506,2]
[323524266,1714067452370,-500.0,0.00011506,2]
[323524267,1714067452383,-500.0,0.00011506,2]
[323524268,1714067452392,-1008.8,0.00011506,2]
[323524269,1714067452402,-5264.15,0.00011506,2]
[323524270,1714067452411,-20987.97,0.00011506,2]
[323524271,1714067452422,-500.0,0.00011506,2]
[323524272,1714067452433,-846.44,0.00011506,2]
[323524273,1714067452444,-500.0,0.00011506,2]
[323524274,1714067452455,-406.02333622,0.00011516,2]
[323524275,1714067452466,-664.33504219,0.00011543,2]
[323524276,1714067452477,-155.36499653,0.00011679,2]
[323524277,1714067452488,-664.33504219,0.0001168,2]
[323524278,1714067452498,-221.34708675,0.000117,2]
[323524279,1714067452508,-1220.67551642,0.000117,2]
[323524280,1714067452519,-406.02333622,0.00011708,2]
[323524281,1714067452529,-348.96034067,0.00011751,2]
[323524282,1714067452539,-155.0,0.00011778,2]
[323524283,1714067452549,-2441.44795968,0.00011778,2]
[323524284,1714067452560,-264.87587186,0.00011778,2]
[323524285,1714067452570,-990.41963218,0.00011778,2]
[323524286,1714067452580,-530.90002223,0.00011778,2]
[323524287,1714067452589,-533.03,0.00011779,2]
[323524288,1714067452599,-681.91,0.00011779,2]
[323524289,1714067452609,-828.38,0.00011779,2]
[323524290,1714067452619,-500.0,0.00011779,2]
[323524291,1714067452629,-1369.56,0.00011779,2]
[323524292,1714067452640,-2317.41,0.00011779,2]
[323524293,1714067452651,-546.82,0.00011779,2]
[323524294,1714067452661,-500.0,0.00011779,2]
[323524295,1714067452671,-537.62,0.00011779,2]
[323524296,1714067452681,-1318.05,0.00011779,2]
[323524297,1714067452691,-500.0,0.00011779,2]
[323524298,1714067452702,-4028.59,0.00011779,2]
[323524299,1714067452711,-5759.08,0.00011779,2]
[323524300,1714067452722,-1383.0,0.00011779,2]
[323524301,1714067452732,-514.21,0.00011779,2]
[323524302,1714067452743,-1060.36,0.00011779,2]
[323524303,1714067452753,-747.36,0.00011779,2]
[323524304,1714067452764,-382.47714891,0.00011779,2]
[323524305,1714067452775,-1349.46,0.00011779,2]
[323524306,1714067452786,-500.0,0.00011779,2]
[323524307,1714067452797,-655.94,0.00011779,2]
[323524308,1714067452806,-3966.3,0.00011779,2]
[323524309,1714067452816,-2017.24,0.00011779,2]
[323524310,1714067452827,-7992.33,0.00011779,2]
[323524311,1714067452836,-604.2,0.0001178,2]
[323524312,1714067452847,-500.0,0.0001178,2]
[323524313,1714067452857,-500.0,0.0001178,2]
[323524314,1714067452867,-500.0,0.0001178,2]
[323524315,1714067452877,-500.0,0.0001178,2]
[323524316,1714067452888,-500.0,0.0001178,2]
[323524317,1714067452898,-597.79,0.0001178,2]
[323524318,1714067452909,-500.0,0.0001178,2]
[323524319,1714067452918,-679.53,0.0001178,2]
[323524320,1714067452928,-238.8,0.0001178,2]
[323524321,1714067452939,-341.51,0.0001178,2]
[323524322,1714067452948,-500.0,0.0001178,2]
[323524323,1714067452958,-949.76,0.0001178,2]
[323524324,1714067452967,-500.0,0.0001178,2]
[323524325,1714067452978,-500.0,0.0001178,2]
[323524326,1714067452989,-500.0,0.0001178,2]
[323524327,1714067452999,-500.0,0.0001178,2]
[323524328,1714067453009,-500.0,0.0001178,2]
[323524329,1714067453019,-500.0,0.0001178,2]
[323524330,1714067453028,-500.0,0.0001178,2]
[323524331,1714067453038,-500.0,0.0001178,2]
[323524332,1714067453048,-958.4,0.0001178,2]
[323524333,1714067453057,-500.0,0.0001178,2]
[323524334,1714067453067,-500.0,0.0001178,2]
[323524335,1714067453077,-500.0,0.0001178,2]
[323524336,1714067453086,-523.75,0.0001178,2]
[323524337,1714067453095,-500.0,0.0001178,2]
[323524338,1714067453105,-500.0,0.0001178,2]
[323524339,1714067453115,-754.04,0.0001178,2]